bitfinex-derivatives/quotes_BTCF0:USTF0_20260131
["timestamp","ask_amount","ask_price","bid_price","bid_amount"]
[1769889876720,0.12856114,77798.0,77777.0,0.33908]
[1769889877020,0.12856114,77798.0,77777.0,0.61630746]
[1769889877321,0.012873,77794.0,77777.0,0.61630746]
[1769889877521,0.012873,77792.0,77777.0,0.61630746]
[1769889877821,0.012873,77795.0,77777.0,0.61630746]
[1769889878016,0.27336305,77830.0,77793.0,0.27722746]
[1769889878215,0.012868,77824.0,77801.0,0.27722746]
[1769889878415,0.012868,77824.0,77800.0,0.26942491]
[1769889878416,0.12855866,77821.0,77803.0,0.27722746]
[1769889878611,0.012867,77831.0,77809.0,0.01287]
[1769889878816,0.012867,77831.0,77809.0,0.29009746]
[1769889879012,0.09268,77838.0,77811.0,0.27722746]
[1769889879013,0.12851488,77827.0,77811.0,0.27722746]
[1769889879224,0.09268,77838.0,77818.0,0.27722746]
[1769889879518,0.012864,77845.0,77822.0,0.29009546]
[1769889879721,0.012863,77851.0,77826.0,0.29009446]
[1769889880023,0.012864,77845.0,77826.0,0.27722746]
[1769889880517,0.012864,77849.0,77826.0,0.27722746]
[1769889880817,0.14133908,77853.0,77829.0,0.29009446]
[1769889881322,0.012863,77853.0,77829.0,0.29009446]
[1769889881522,0.12847608,77852.0,77829.0,0.29009446]
[1769889882021,0.012863,77851.0,77829.0,0.27722746]
[1769889882720,0.128467,77850.0,77829.0,0.27722746]
[1769889882912,0.2866531,77871.0,77836.0,0.29336563]
[1769889883116,0.2866531,77871.0,77833.0,0.012866]
[1769889883117,0.2866531,77871.0,77838.0,0.29336563]
[1769889883323,0.2866531,77869.0,77838.0,0.29336563]
[1769889883720,0.2866531,77879.0,77838.0,0.29336563]
[1769889883922,0.12844637,77868.0,77844.0,0.29336563]
[1769889884121,0.01286,77870.0,77844.0,0.29336563]
[1769889884325,0.01286,77870.0,77844.0,0.30622963]
[1769889884622,0.01286,77870.0,77837.0,0.43168]
[1769889884623,0.12844637,77869.0,77850.0,0.29336563]
[1769889884825,0.012859,77879.0,77852.0,0.29336563]
[1769889885014,0.09268,77882.0,77856.0,0.29336563]
[1769889885214,0.012853,77913.0,77853.0,0.09264]
[1769889885215,0.2866531,77918.0,77853.0,0.09264]
[1769889885420,0.012854,77907.0,77884.0,0.24960563]
[1769889885623,0.1284406,77912.0,77886.0,0.24960563]
[1769889885820,0.2995051,77918.0,77886.0,0.24960563]
[1769889886024,0.12837712,77917.0,77886.0,0.24960563]
[1769889886223,0.12837712,77917.0,77887.0,0.25806116]
[1769889886524,0.012851,77923.0,77890.0,0.25806116]
[1769889886721,0.12837712,77916.0,77890.0,0.25806116]
[1769889887024,0.012852,77920.0,77890.0,0.25806116]
[1769889887321,0.2866531,77927.0,77890.0,0.24520416]
[1769889887322,0.1283664,77915.0,77890.0,0.24520416]
[1769889887517,0.012853,77915.0,77885.0,0.09264]
[1769889887712,0.2866531,77913.0,77885.0,0.09264]
[1769889887917,0.2995071,77908.0,77885.0,0.09264]
[1769889888325,0.2866531,77901.0,77885.0,0.08877328]
[1769889888520,0.012856,77896.0,77878.0,0.09264]
[1769889888824,0.012856,77896.0,77876.0,0.09264]
[1769889889124,0.12838124,77895.0,77876.0,0.09264]
[1769889889324,0.14123724,77895.0,77876.0,0.09264]
[1769889889518,0.012856,77895.0,77876.0,0.09264]
[1769889890117,0.012856,77893.0,77876.0,0.09264]
[1769889890317,0.012857,77890.0,77876.0,0.09264]
[1769889890517,0.2866531,77901.0,77876.0,0.09264]
[1769889890816,0.012858,77885.0,77868.0,0.0926]
[1769889891015,0.012857,77889.0,77868.0,0.0926]
[1769889891224,0.2866531,77891.0,77868.0,0.0926]
[1769889891420,0.012859,77878.0,77868.0,0.0926]
[1769889891617,0.012859,77878.0,77853.0,0.25297473]
[1769889891618,0.01286,77871.0,77858.0,0.33876]
[1769889891820,0.12841421,77877.0,77857.0,0.25333331]
[1769889892024,0.12841421,77877.0,77856.0,0.0926]
[1769889892025,0.0357742,77877.0,77859.0,0.25333331]
[1769889892328,0.012858,77880.0,77858.0,0.33876]
[1769889893128,0.012859,77877.0,77858.0,0.33876]
[1769889893321,0.012859,77878.0,77858.0,0.33876]
[1769889893729,0.012859,77878.0,77856.0,0.0926]
[1769889893730,0.2866531,77874.0,77856.0,0.0926]
[1769889893914,0.1284208,77877.0,77856.0,0.0926]
[1769889894121,0.012859,77877.0,77856.0,0.0926]
[1769889894525,0.01286,77869.0,77858.0,0.001]
[1769889895031,0.012861,77865.0,77850.0,0.00016594]
[1769889895322,0.012863,77855.0,77840.0,0.0926]
[1769889895825,0.012863,77852.0,77840.0,0.0926]
[1769889896024,0.012863,77851.0,77833.0,0.26127332]
[1769889896227,0.00015359,77850.0,77831.0,0.26133642]
[1769889896425,0.00015359,77850.0,77833.0,0.26133642]
[1769889896917,0.41511927,77849.0,77826.0,0.0926]
[1769889897121,0.012865,77838.0,77826.0,0.0926]
[1769889897328,0.012866,77836.0,77826.0,0.0926]
[1769889897919,0.012866,77834.0,77826.0,0.0926]
[1769889898223,0.1284835,77835.0,77826.0,0.0926]
[1769889898425,0.00010785,77837.0,77826.0,0.0926]
[1769889899825,0.00010785,77837.0,77800.0,0.3035913]
[1769889899826,0.012868,77823.0,77800.0,0.3035913]
[1769889900025,0.00013708,77822.0,77802.0,0.012871]
[1769889900232,0.00013708,77822.0,77802.0,0.3035913]
[1769889900433,0.00013708,77822.0,77802.0,0.2907203]
[1769889900826,0.012868,77821.0,77802.0,0.2907203]
[1769889901135,0.12851488,77821.0,77801.0,0.0926]
[1769889901335,0.012869,77819.0,77801.0,0.0926]
[1769889901630,0.00013708,77822.0,77801.0,0.0926]
[1769889901824,0.2866531,77819.0,77801.0,0.0926]
[1769889902031,0.2866531,77817.0,77801.0,0.0926]
[1769889902328,0.2866531,77815.0,77801.0,0.0926]
[1769889902635,0.2866531,77806.0,77763.0,0.30304938]
[1769889902931,0.2866531,77801.0,77765.0,0.29017138]
[1769889903129,0.012873,77795.0,77770.0,0.29017138]
[1769889903331,0.2866531,77801.0,77770.0,0.29017138]
[1769889903527,0.2866531,77798.0,77762.0,0.30304938]
[1769889903832,0.012873,77792.0,77769.0,0.29257485]
[1769889904630,0.12855866,77791.0,77769.0,0.29257485]
[1769889904826,0.012873,77790.0,77764.0,0.012877]
[1769889905026,0.00015473,77789.0,77764.0,0.012877]
[1769889905227,0.00015473,77789.0,77760.0,0.29257485]
[1769889905228,0.012874,77785.0,77760.0,0.29257485]
[1769889905436,0.14144092,77788.0,77760.0,0.30545285]
[1769889905627,0.012874,77785.0,77760.0,0.29257485]
[1769889905829,0.01302873,77789.0,77762.0,0.29336563]
[1769889906037,0.12857767,77787.0,77762.0,0.29336563]
[1769889906337,0.01302873,77789.0,77762.0,0.29336563]
[1769889906835,0.012874,77787.0,77762.0,0.29336563]
[1769889907036,0.29548966,77787.0,77759.0,0.0926]
[1769889907337,0.00015473,77789.0,77760.0,0.28444982]
[1769889907338,0.012874,77783.0,77760.0,0.28444982]
[1769889907532,0.12857519,77786.0,77760.0,0.28444982]
[1769889907730,0.012874,77785.0,77760.0,0.28444982]
[1769889907931,0.00015473,77789.0,77761.0,0.29732782]
[1769889908141,0.1285818,77784.0,77761.0,0.29732782]
[1769889908338,0.012874,77787.0,77761.0,0.29732782]
[1769889908339,0.012874,77785.0,77761.0,0.28444982]
[1769889908738,0.1285818,77783.0,77761.0,0.28444982]
[1769889908929,0.012875,77780.0,77759.0,0.0926]
[1769889909140,0.012875,77778.0,77759.0,0.0926]
[1769889909334,0.00011394,77777.0,77759.0,0.0926]
[1769889910636,0.14146359,77776.0,77759.0,0.0926]
[1769889911041,0.012876,77773.0,77759.0,0.0926]
[1769889912941,0.012876,77776.0,77759.0,0.0926]
[1769889913139,0.30836566,77776.0,77759.0,0.0926]
[1769889913340,0.012876,77772.0,77750.0,0.01288]
[1769889913544,0.1285909,77776.0,77757.0,0.29636077]
[1769889913842,0.00011394,77777.0,77757.0,0.28348177]
[1769889914143,0.012872,77796.0,77773.0,0.012876]
[1769889914445,0.012872,77799.0,77777.0,0.17058245]
[1769889914634,0.09264,77806.0,77777.0,0.17058245]
[1769889914838,0.14147116,77800.0,77780.0,0.15770745]
[1769889915044,0.012872,77800.0,77780.0,0.15770745]
[1769889915342,0.12867552,77799.0,77780.0,0.15770745]
[1769889916043,0.012868,77824.0,77799.0,0.15405643]
[1769889916234,0.09268,77831.0,77795.0,0.012872]
[1769889916235,0.012868,77822.0,77795.0,0.012872]
[1769889916433,0.012868,77820.0,77795.0,0.012872]
[1769889916634,0.012868,77823.0,77797.0,0.012872]
[1769889916837,0.012868,77821.0,77797.0,0.012872]
[1769889917032,0.12852231,77819.0,77797.0,0.16692843]
[1769889917233,0.12852231,77819.0,77793.0,0.09268]
[1769889917234,5.729e-05,77822.0,77799.0,0.15405643]
[1769889917444,0.12852231,77818.0,77800.0,0.012872]
[1769889917645,0.12852231,77818.0,77799.0,0.15405643]
[1769889917837,5.729e-05,77822.0,77793.0,0.09268]
[1769889918038,0.12851983,77821.0,77796.0,0.012872]
[1769889918338,5.729e-05,77822.0,77806.0,0.012871]
[1769889918639,0.01287,77809.0,77793.0,0.09268]
[1769889918839,5.729e-05,77808.0,77793.0,0.09268]
[1769889919744,0.29548966,77806.0,77793.0,0.08881565]
[1769889919944,0.29548966,77806.0,77773.0,0.37072]
[1769889919945,0.012871,77803.0,77781.0,0.09264]
[1769889920145,0.012872,77801.0,77781.0,0.09264]
[1769889920945,0.29548966,77806.0,77781.0,0.09264]
[1769889920946,0.012872,77799.0,77781.0,0.09264]
[1769889921146,0.012871,77802.0,77781.0,0.09264]
[1769889921342,0.012872,77800.0,77781.0,0.09264]
[1769889921749,0.29548966,77806.0,77781.0,0.09264]
[1769889921938,0.12854957,77799.0,77781.0,0.09264]
[1769889922140,0.012873,77794.0,77781.0,0.09264]
[1769889923048,0.012873,77792.0,77781.0,0.09264]
[1769889923248,5.729e-05,77798.0,77781.0,0.09264]
[1769889923249,0.012873,77789.0,77781.0,0.09264]
[1769889923441,0.012873,77789.0,77769.0,0.14804086]
[1769889923643,0.012874,77785.0,77767.0,0.33896]
[1769889923850,0.012874,77783.0,77766.0,0.09264]
[1769889924347,5.729e-05,77784.0,77766.0,0.09264]
[1769889924652,0.1285694,77782.0,77757.0,0.012879]
[1769889924839,0.012875,77778.0,77754.0,0.012879]
[1769889925042,0.012876,77776.0,77754.0,0.012879]
[1769889925745,0.12857602,77775.0,77754.0,0.012879]
[1769889926044,0.29554695,77774.0,77749.0,0.09268]
[1769889926250,0.012878,77763.0,77749.0,0.09268]
[1769889926446,0.29554695,77762.0,77733.0,0.10492348]
[1769889926646,0.01288,77751.0,77733.0,0.10492348]
[1769889926841,0.01288,77749.0,77733.0,0.10492348]
[1769889927040,5.729e-05,77750.0,77735.0,0.1377907]
[1769889927750,0.09268,77761.0,77745.0,0.13766742]
[1769889928746,0.36616966,77761.0,77735.0,0.00012328]
[1769889928945,0.42411943,77760.0,77735.0,0.00012328]
[1769889929143,0.12862977,77760.0,77736.0,0.1348432]
[1769889929348,0.12862977,77760.0,77735.0,0.00012328]
[1769889929349,0.29548966,77778.0,77745.0,0.1348432]
[1769889929647,0.1286124,77768.0,77749.0,0.1348432]
[1769889930040,0.012876,77772.0,77749.0,0.1348432]
[1769889930245,0.12859834,77767.0,77749.0,0.1348432]
[1769889930451,0.012876,77773.0,77749.0,0.1348432]
[1769889931248,0.12859916,77772.0,77749.0,0.1348432]
[1769889931442,0.14147516,77772.0,77749.0,0.1348432]
[1769889931645,0.012876,77772.0,77749.0,0.1477232]
[1769889931848,0.12859916,77771.0,77749.0,0.1477232]
[1769889932047,0.09268,77777.0,77758.0,0.13388551]
[1769889932244,0.09268,77777.0,77763.0,0.012878]
[1769889932448,0.29548966,77804.0,77757.0,0.012879]
[1769889932647,0.1357319,77803.0,77777.0,0.04120551]
[1769889932846,0.12859999,77801.0,77778.0,0.04120551]
[1769889933046,0.38816966,77813.0,77778.0,0.05408051]
[1769889933242,0.012871,77806.0,77781.0,0.04120551]
[1769889933457,0.12856692,77800.0,77781.0,0.04120551]
[1769889933649,0.012869,77815.0,77786.0,0.03876685]
[1769889933853,0.13483652,77814.0,77789.0,0.03876685]
[1769889934053,0.1285504,77812.0,77793.0,0.012873]
[1769889934354,0.09268,77818.0,77793.0,0.012873]
[1769889934555,0.1285504,77811.0,77793.0,0.012873]
[1769889934758,0.012869,77814.0,77789.0,0.05163985]
[1769889935550,0.29548966,77808.0,77782.0,0.012875]
[1769889935744,0.30836066,77804.0,77779.0,0.012875]
[1769889936154,0.42403262,77803.0,77777.0,0.444635]
[1769889936360,0.012872,77800.0,77777.0,0.09268]
[1769889936653,0.105551,77804.0,77778.0,0.012875]
[1769889937154,0.1414247,77802.0,77777.0,0.09268]
[1769889937556,0.09268,77804.0,77777.0,0.09268]
[1769889937755,0.1285537,77801.0,77782.0,0.012874]
[1769889937957,0.1285537,77801.0,77779.0,0.012875]
[1769889938252,0.28650037,77803.0,77777.0,0.09268]
[1769889938444,0.012872,77800.0,77777.0,0.09268]
[1769889938856,0.1285504,77799.0,77777.0,0.09268]
[1769889939451,0.14585673,77798.0,77777.0,0.09268]
[1769889939660,0.1285504,77799.0,77777.0,0.09268]
[1769889939848,0.14585808,77798.0,77777.0,0.09268]
[1769889940050,0.12855535,77798.0,77778.0,0.012875]
[1769889940356,0.012872,77800.0,77777.0,0.09268]
[1769889940357,0.14587605,77797.0,77777.0,0.09268]
[1769889940551,0.012872,77800.0,77777.0,0.09268]
[1769889940752,0.12855535,77797.0,77777.0,0.09268]
[1769889940954,0.012872,77798.0,77777.0,0.105555]
[1769889941154,0.14598231,77797.0,77777.0,0.105555]
[1769889941449,0.1285537,77798.0,77788.0,0.04047004]
[1769889941653,0.01287,77808.0,77783.0,0.012874]
[1769889941849,0.30129526,77808.0,77785.0,0.012874]
[1769889942555,0.12854627,77807.0,77785.0,0.012874]
[1769889943657,0.012871,77806.0,77785.0,0.012874]
[1769889943955,0.01287,77807.0,77785.0,0.012874]
[1769889944149,0.28842526,77808.0,77778.0,0.03472419]
[1769889944351,0.012871,77802.0,77781.0,0.012875]
[1769889944551,0.012873,77794.0,77777.0,0.09268]
[1769889944755,0.30559583,77792.0,77777.0,0.09268]
[1769889944958,0.29272283,77792.0,77777.0,0.09268]
[1769889946352,0.012873,77793.0,77777.0,0.09268]
[1769889946757,0.012872,77796.0,77777.0,0.09268]
[1769889947354,0.012873,77794.0,77777.0,0.09268]
[1769889947960,0.012873,77792.0,77777.0,0.09268]
[1769889948164,0.29194123,77798.0,77777.0,0.09268]
[1769889948355,0.42049989,77798.0,77777.0,0.09268]
[1769889948555,0.29194123,77798.0,77777.0,0.09268]
[1769889948763,0.42049989,77797.0,77777.0,0.09268]
[1769889949152,0.29194123,77797.0,77777.0,0.09268]
[1769889949459,0.42049658,77796.0,77777.0,0.09268]
[1769889949758,0.29194123,77796.0,77777.0,0.09268]
[1769889950060,0.012873,77794.0,77777.0,0.09268]
[1769889950461,0.012873,77792.0,77777.0,0.09268]
[1769889950965,0.29235232,77792.0,77764.0,0.02294303]
[1769889951667,0.012873,77791.0,77764.0,0.02294303]
[1769889952463,0.012873,77790.0,77769.0,0.012877]
[1769889952853,0.012874,77788.0,77764.0,0.02294303]
[1769889953063,0.29235232,77792.0,77769.0,0.012877]
[1769889953259,0.12856858,77787.0,77764.0,0.02294303]
[1769889953462,0.12856858,77787.0,77770.0,0.012877]
[1769889953665,0.30522532,77792.0,77770.0,0.012877]
[1769889953964,0.12856858,77791.0,77770.0,0.012877]
[1769889954365,0.12856858,77791.0,77772.0,0.012876]
[1769889954864,0.29126788,77785.0,77760.0,0.36161033]
[1769889955066,0.29126788,77785.0,77767.0,0.012877]
[1769889955362,0.38394788,77799.0,77775.0,0.02619635]
[1769889955566,0.38394788,77799.0,77767.0,0.012877]
[1769889955567,0.29126788,77783.0,77767.0,0.012877]
[1769889955865,0.29126788,77783.0,77760.0,0.36161033]
[1769889956066,0.12857602,77782.0,77760.0,0.36161033]
[1769889956266,0.12857602,77782.0,77766.0,0.012877]
[1769889956662,0.12857602,77782.0,77760.0,0.38902406]
[1769889956870,0.30373708,77781.0,77761.0,0.012878]
[1769889957164,0.29086208,77796.0,77770.0,0.012877]
[1769889957367,0.29086208,77794.0,77768.0,0.012877]
[1769889957570,0.12858263,77790.0,77770.0,0.012877]
[1769889957762,0.28876875,77804.0,77780.0,0.26893033]
[1769889957963,0.43172,77803.0,77783.0,0.012874]
[1769889958161,0.12856775,77798.0,77786.0,0.012874]
[1769889958362,0.43172,77803.0,77786.0,0.012874]
[1769889958563,0.28876875,77804.0,77786.0,0.012874]
[1769889958763,0.3197,77829.0,77788.0,0.012873]
[1769889958764,0.12856775,77802.0,77788.0,0.012873]
[1769889958964,0.09268,77809.0,77790.0,0.012873]
[1769889959267,0.12854296,77808.0,77791.0,0.012873]
[1769889959469,0.12854296,77808.0,77790.0,0.03369373]
[1769889959669,0.09268,77809.0,77791.0,0.03261888]
[1769889959871,0.09268,77809.0,77797.0,0.012872]
[1769889960070,0.30163675,77820.0,77799.0,0.012872]
[1769889960270,0.28876875,77820.0,77801.0,0.012871]
[1769889960466,0.1285347,77819.0,77801.0,0.012871]
[1769889960674,0.28912703,77834.0,77801.0,0.03261888]
[1769889960977,0.012866,77833.0,77809.0,0.01287]
[1769889961269,0.28912703,77834.0,77811.0,0.01287]
[1769889961466,0.28912703,77841.0,77820.0,0.26893033]
[1769889961670,0.28912703,77850.0,77821.0,0.02815522]
[1769889961865,0.012862,77858.0,77832.0,0.012866]
[1769889962063,0.29061492,77855.0,77822.0,0.09268]
[1769889962263,0.012863,77851.0,77826.0,0.012867]
[1769889962466,0.23947792,77855.0,77826.0,0.012867]
[1769889962669,0.09268,77868.0,77828.0,0.012867]
[1769889962670,0.012863,77851.0,77828.0,0.012867]
[1769889962865,0.43168,77850.0,77822.0,0.09268]
[1769889963071,0.012865,77843.0,77822.0,0.09268]
[1769889963271,0.012865,77841.0,77822.0,0.09268]
[1769889963472,0.012864,77844.0,77822.0,0.09268]
[1769889963669,0.12846947,77840.0,77822.0,0.09268]
[1769889963871,0.09268,77849.0,77823.0,0.06333734]
[1769889964066,0.012863,77851.0,77822.0,0.09268]
[1769889964067,0.01286,77870.0,77844.0,0.012864]
[1769889964272,0.09264,77870.0,77846.0,0.012864]
[1769889964465,0.1284835,77865.0,77846.0,0.07620134]
[1769889964765,0.01286,77874.0,77846.0,0.07620134]
[1769889964966,0.1284835,77864.0,77848.0,0.012864]
[1769889965167,0.012859,77875.0,77848.0,0.07620134]
[1769889965365,0.09264,77877.0,77850.0,0.07620034]
[1769889965565,0.12844307,77876.0,77852.0,0.06333734]
[1769889965764,0.09264,77883.0,77860.0,0.26893033]
[1769889966167,0.28503428,77881.0,77860.0,0.26893033]
[1769889966373,0.28503428,77876.0,77851.0,0.09264]
[1769889966573,0.01286,77873.0,77851.0,0.09264]
[1769889967176,0.29789328,77876.0,77851.0,0.105503]
[1769889967376,0.12843235,77872.0,77851.0,0.105503]
[1769889967672,0.29789328,77876.0,77851.0,0.105503]
[1769889967673,0.28503428,77876.0,77851.0,0.105503]
[1769889967878,0.12843235,77875.0,77851.0,0.09264]
[1769889968179,0.28503428,77876.0,77851.0,0.105503]
[1769889968380,0.12842988,77874.0,77854.0,0.012863]
[1769889968576,0.001,77881.0,77861.0,0.06488869]
[1769889968777,0.001,77881.0,77865.0,0.07774969]
[1769889968975,0.012855,77899.0,77868.0,0.01286]
[1769889969280,0.12841751,77892.0,77872.0,0.06488869]
[1769889969477,0.12841751,77892.0,77866.0,0.09264]
[1769889969779,0.012853,77912.0,77882.0,0.012858]
[1769889970278,0.12840431,77900.0,77885.0,0.012858]
[1769889970577,0.09264,77922.0,77890.0,0.26893033]
[1769889970578,0.012852,77920.0,77890.0,0.26893033]
[1769889970778,0.12840431,77899.0,77881.0,0.09264]
[1769889971180,0.012853,77912.0,77881.0,0.09264]
[1769889971381,0.12836146,77898.0,77881.0,0.09264]
[1769889971877,0.012853,77911.0,77882.0,0.012858]
[1769889972076,0.27523012,77920.0,77890.0,0.26893033]
[1769889972274,0.128387,77906.0,77893.0,0.012856]
[1769889972478,0.28808012,77930.0,77899.0,0.012855]
[1769889972677,0.28808012,77930.0,77896.0,0.12990982]
[1769889972678,0.27523012,77930.0,77910.0,0.012853]
[1769889972879,0.27523012,77949.0,77911.0,0.12990982]
[1769889973078,0.012846,77954.0,77921.0,0.14276182]
[1769889973277,0.12833675,77946.0,77923.0,0.012851]
[1769889973472,0.27523012,77953.0,77922.0,0.0926]
[1769889973676,0.0926,77956.0,77922.0,0.08856844]
[1769889973677,0.27523012,77939.0,77922.0,0.08856844]
[1769889974277,0.12831946,77938.0,77914.0,0.0926]
[1769889974673,0.12831946,77938.0,77915.0,0.13270721]
[1769889974879,0.28807712,77950.0,77928.0,0.26893033]
[1769889975072,0.25283241,77989.0,77910.0,0.33876]
[1769889975073,0.0926,77962.0,77940.0,0.26893033]
[1769889975278,0.12832605,77965.0,77940.0,0.26893033]
[1769889975484,0.128387,77968.0,77941.0,0.012848]
[1769889975779,0.12832605,77968.0,77949.0,0.012847]
[1769889976078,0.01284,77994.0,77960.0,0.012845]
[1769889976281,0.01284,77994.0,77960.0,0.105405]
[1769889976586,0.27523012,77994.0,77963.0,0.012845]
[1769889976785,0.27523012,77994.0,77960.0,0.23849302]
[1769889976985,0.12827995,77993.0,77961.0,0.14593302]
[1769889977186,0.12827995,77993.0,77969.0,0.012844]
[1769889977478,0.01284,77992.0,77960.0,0.09256]
[1769889977682,0.40351007,77993.0,77964.0,0.012844]
[1769889977981,0.27523012,77993.0,77964.0,0.012844]
[1769889978177,0.12824047,77992.0,77964.0,0.012844]
[1769889978384,0.12824047,77992.0,77966.0,0.012844]
[1769889978978,0.12824047,77992.0,77968.0,0.012844]
[1769889979485,0.12824047,77992.0,77964.0,0.15365043]
[1769889979486,0.27523012,77991.0,77964.0,0.012845]
[1769889979674,0.12924047,77992.0,77967.0,0.012844]
[1769889979880,0.001,77992.0,77964.0,0.16881234]
[1769889980079,0.12823883,77991.0,77964.0,0.16881234]
[1769889980378,0.27523012,77997.0,77970.0,0.012844]
[1769889980583,0.27523012,77997.0,77969.0,0.012844]
[1769889980784,0.128387,77993.0,77969.0,0.012844]
[1769889981289,0.26893033,77979.0,77959.0,0.012845]
[1769889981787,0.22793033,77979.0,77960.0,0.09252]
[1769889981990,0.128387,77975.0,77960.0,0.09252]
[1769889982191,0.128387,77973.0,77960.0,0.09252]
[1769889982582,0.26893033,77990.0,77965.0,0.012844]
[1769889982779,0.12446328,77987.0,77963.0,0.012845]
[1769889983082,0.27523012,77980.0,77963.0,0.09252]
[1769889983283,0.27523012,77977.0,77963.0,0.08867284]
[1769889983483,0.3996934,77976.0,77953.0,0.09252]
[1769889983688,0.27523012,77976.0,77953.0,0.09252]
[1769889983986,0.12446328,77974.0,77953.0,0.09252]
[1769889984384,0.12446328,77963.0,77934.0,0.09252]
[1769889984587,0.012845,77962.0,77935.0,0.012849]
[1769889985190,0.3996934,77958.0,77934.0,0.09252]
[1769889985493,0.12446328,77956.0,77934.0,0.09252]
[1769889985881,0.012846,77957.0,77934.0,0.09252]
[1769889986187,0.60733033,77970.0,77908.0,0.37008]
[1769889986188,0.27523012,77947.0,77920.0,0.09248]
[1769889986493,0.28807612,77954.0,77927.0,0.012851]
[1769889986686,0.09248,77956.0,77926.0,0.23210846]
[1769889986885,0.27523012,77953.0,77926.0,0.012851]
[1769889987091,0.40352571,77953.0,77926.0,0.012851]
[1769889987391,0.27523012,77962.0,77926.0,0.23210846]
[1769889987694,0.12830217,77958.0,77933.0,0.01285]
[1769889988193,0.12446328,77954.0,77934.0,0.09248]
[1769889988391,0.12446328,77956.0,77934.0,0.09248]
[1769889988593,0.09248,77964.0,77935.0,0.27323452]
[1769889989087,0.3996934,77960.0,77935.0,0.012849]
[1769889989388,0.27523012,77959.0,77935.0,0.012849]
[1769889989687,0.12446328,77958.0,77934.0,0.105329]
[1769889989892,0.27523012,77955.0,77934.0,0.09248]
[1769889990196,0.27523012,77950.0,77934.0,0.09248]
[1769889990691,0.12446328,77948.0,77934.0,0.09248]
[1769889991094,0.09248,77964.0,77934.0,0.09348]
[1769889991095,0.012845,77961.0,77934.0,0.09348]
[1769889991293,0.27523012,77964.0,77936.0,0.012849]
[1769889991294,0.12446328,77955.0,77936.0,0.012849]
[1769889991592,0.012846,77956.0,77934.0,0.09348]
[1769889991798,0.12446328,77951.0,77934.0,0.09348]
[1769889991999,0.3996934,77951.0,77934.0,0.09348]
[1769889992200,0.12446328,77948.0,77934.0,0.09348]
[1769889992697,0.12446328,77935.0,77919.0,0.09248]
[1769889992898,0.09248,77951.0,77920.0,0.28496982]
[1769889993198,0.12832522,77949.0,77923.0,0.012851]
[1769889993400,0.12832522,77949.0,77935.0,0.012849]
[1769889993594,0.27523012,77960.0,77935.0,0.012849]
[1769889993794,0.12446328,77954.0,77935.0,0.012849]
[1769889994399,0.12446328,77951.0,77935.0,0.012849]
[1769889994599,0.12446328,77954.0,77935.0,0.012849]
[1769889994796,0.12446328,77951.0,77935.0,0.29781882]
[1769889994998,0.12446328,77957.0,77935.0,0.28496982]
[1769889995299,0.12829641,77957.0,77934.0,0.09248]
[1769889995503,0.12446328,77953.0,77934.0,0.09248]
[1769889995893,0.12446328,77951.0,77934.0,0.09248]
[1769889996095,0.12446328,77955.0,77934.0,0.09248]
[1769889996398,0.63519136,78027.0,77942.0,0.28496982]
[1769889996399,0.12829806,77959.0,77942.0,0.28496982]
[1769889996589,0.12829806,77959.0,77934.0,0.09248]
[1769889996590,0.012843,77975.0,77947.0,0.012847]
[1769889996899,0.012843,77975.0,77946.0,0.28496982]
[1769889996900,0.12446328,77968.0,77949.0,0.012847]
[1769889997101,0.12446328,77966.0,77948.0,0.09248]
[1769889997301,0.12446328,77967.0,77948.0,0.09248]
[1769889997497,0.12446328,77963.0,77948.0,0.09248]
[1769889997699,0.28013346,77964.0,77948.0,0.09248]
[1769889998001,0.012845,77965.0,77948.0,0.09248]
[1769889998302,0.12446328,77959.0,77948.0,0.09248]
[1769889998502,0.12446328,77961.0,77948.0,0.09248]
[1769889999104,0.08346328,77958.0,77948.0,0.09248]
[1769889999403,0.08346328,77960.0,77948.0,0.09248]
[1769889999699,0.28013346,77968.0,77948.0,0.09248]
[1769890000096,0.28013346,77964.0,77948.0,0.09248]
[1769890000297,0.28013346,77973.0,77952.0,0.012846]
[1769890000491,0.14154535,77972.0,77949.0,0.012847]
[1769890000693,0.29297746,77968.0,77948.0,0.09248]
[1769890000895,0.09248,77980.0,77948.0,0.09248]
[1769890000896,0.28013346,77965.0,77948.0,0.09248]
[1769890001294,0.14166537,77964.0,77948.0,0.09248]
[1769890001495,0.28013346,77965.0,77948.0,0.09248]
[1769890001695,0.14160953,77964.0,77948.0,0.09248]
[1769890001891,0.12827419,77964.0,77948.0,0.09248]
[1769890002297,0.14179131,77963.0,77948.0,0.09248]
[1769890002506,0.41436138,77962.0,77948.0,0.09248]
[1769890002706,0.41436023,77961.0,77948.0,0.09248]
[1769890003004,0.14180429,77960.0,77948.0,0.09248]
[1769890003206,0.27257007,77961.0,77948.0,0.09248]
[1769890003207,0.14180429,77959.0,77948.0,0.09248]
[1769890003505,0.14180429,77958.0,77948.0,0.09248]
[1769890003709,0.14180429,77957.0,77948.0,0.09226566]
[1769890004203,0.14605284,77956.0,77948.0,0.09226566]
[1769890004404,0.27257007,77954.0,77938.0,0.012849]
[1769890004704,0.14571352,77953.0,77938.0,0.012849]
[1769890004904,0.14571005,77952.0,77938.0,0.012849]
[1769890005204,0.27257007,77954.0,77938.0,0.012849]
[1769890005400,0.27257007,77954.0,77937.0,0.012849]
[1769890005401,0.14575019,77953.0,77937.0,0.012849]
[1769890005605,0.14575019,77952.0,77936.0,0.09248]
[1769890005805,0.28541707,77948.0,77927.0,0.012851]
[1769890006098,0.14575019,77951.0,77924.0,0.27011579]
[1769890006099,0.14575019,77947.0,77924.0,0.27011579]
[1769890006302,0.012848,77945.0,77923.0,0.09248]
[1769890006503,0.012848,77941.0,77923.0,0.09248]
[1769890006902,0.27407701,77940.0,77923.0,0.09248]
[1769890007100,0.14576908,77939.0,77923.0,0.09248]
[1769890007295,0.14576908,77938.0,77923.0,0.09248]
[1769890007497,0.01285,77932.0,77911.0,0.012853]
[1769890007701,0.012851,77925.0,77903.0,0.012855]
[1769890007906,0.09248,77934.0,77899.0,0.09248]
[1769890007907,0.14576908,77924.0,77899.0,0.09248]
[1769890008205,0.14576908,77923.0,77899.0,0.09248]
[1769890008411,0.14576908,77922.0,77900.0,0.012855]
[1769890008611,0.12834499,77922.0,77913.0,0.012853]